[Event "*** Titled Tuesday Blitz"]
[Site "Chess.com"]
[Date "2020.12.29"]
[Round "8"]
[White "northridgehawk"]
[Black "RobPeresian"]
[Result "0-1"]
[WhiteElo "2321"]
[BlackElo "2446"]
[TimeControl "180+1"]
[EndTime "11:28:45 PST"]
[Termination "RobPeresian won by checkmate"]

1. e4 {[%clk 0:03:00.9]} 1... e5 {[%clk 0:02:56.6]} 2. Nf3 {[%clk 0:02:58.3]}
2... Nc6 {[%clk 0:02:53.9]} 3. Bb5 {[%clk 0:02:58.3]} 3... a6 {[%clk 0:02:53.9]}
4. Ba4 {[%clk 0:02:58.5]} 4... Nf6 {[%clk 0:02:54]} 5. d3 {[%clk 0:02:57.5]}
5... b5 {[%clk 0:02:49.7]} 6. Bb3 {[%clk 0:02:55.4]} 6... Bc5 {[%clk 0:02:50.1]}
7. O-O {[%clk 0:02:45.7]} 7... d6 {[%clk 0:02:49]} 8. a3 {[%clk 0:02:44.7]} 8...
h6 {[%clk 0:02:43.7]} 9. Nc3 {[%clk 0:02:45.1]} 9... O-O {[%clk 0:02:40]} 10.
Nd5 {[%clk 0:02:43.3]} 10... Bg4 {[%clk 0:01:48.5]} 11. c3 {[%clk 0:02:41.6]}
11... Rb8 {[%clk 0:01:38.9]} 12. h3 {[%clk 0:02:39.8]} 12... Bh5 {[%clk
0:01:15.3]} 13. g4 {[%clk 0:02:37.6]} 13... Bg6 {[%clk 0:01:12.3]} 14. Kg2
{[%clk 0:02:36]} 14... Nxd5 {[%clk 0:01:10.6]} 15. Bxd5 {[%clk 0:02:36.9]} 15...
Ne7 {[%clk 0:01:06.3]} 16. Ba2 {[%clk 0:02:35.7]} 16... Kh8 {[%clk 0:00:57.1]}
17. b4 {[%clk 0:02:29.2]} 17... Bb6 {[%clk 0:00:55.9]} 18. Nh4 {[%clk
0:02:24.8]} 18... Bh7 {[%clk 0:00:51]} 19. f4 {[%clk 0:02:24.6]} 19... exf4
{[%clk 0:00:47.9]} 20. Bxf4 {[%clk 0:02:12.7]} 20... g5 {[%clk 0:00:47]} 21. Qd2
{[%clk 0:02:12.4]} 21... gxf4 {[%clk 0:00:23.4]} 22. Qxf4 {[%clk 0:02:11.7]}
22... Ng6 {[%clk 0:00:20.2]} 23. Nxg6+ {[%clk 0:02:10.6]} 23... fxg6 {[%clk
0:00:21.1]} 24. Qxh6 {[%clk 0:02:11.1]} 24... Qe7 {[%clk 0:00:20.7]} 25. g5
{[%clk 0:01:50.7]} 25... Qg7 {[%clk 0:00:17.5]} 26. Qxg7+ {[%clk 0:01:20.1]}
26... Kxg7 {[%clk 0:00:18.4]} 27. d4 {[%clk 0:01:16.3]} 27... Bg8 {[%clk
0:00:18.4]} 28. Bb1 {[%clk 0:01:15.5]} 28... Be6 {[%clk 0:00:17.8]} 29. Bd3
{[%clk 0:01:14.8]} 29... c6 {[%clk 0:00:16]} 30. Rae1 {[%clk 0:01:12.6]} 30...
Rh8 {[%clk 0:00:15.4]} 31. Rf3 {[%clk 0:01:01.1]} 31... Rbf8 {[%clk 0:00:15.3]}
32. Ref1 {[%clk 0:01:01.4]} 32... Rxf3 {[%clk 0:00:15]} 33. Rxf3 {[%clk
0:01:02.3]} 33... d5 {[%clk 0:00:13.4]} 34. e5 {[%clk 0:01:01.3]} 34... Bd8
{[%clk 0:00:13.5]} 35. Rg3 {[%clk 0:00:51.2]} 35... Rh5 {[%clk 0:00:13.6]} 36.
h4 {[%clk 0:00:47.7]} 36... Rxh4 {[%clk 0:00:13.5]} 37. a4 {[%clk 0:00:46.9]}
37... Rh5 {[%clk 0:00:13.1]} 38. axb5 {[%clk 0:00:47.1]} 38... axb5 {[%clk
0:00:12.8]} 39. Rf3 {[%clk 0:00:47.1]} 39... Rxg5+ {[%clk 0:00:12.3]} 40. Kf2
{[%clk 0:00:47.7]} 40... Bf5 {[%clk 0:00:12.4]} 41. Bf1 {[%clk 0:00:46.5]} 41...
Be4 {[%clk 0:00:11.3]} 42. Rh3 {[%clk 0:00:43.9]} 42... Rf5+ {[%clk 0:00:10.6]}
43. Ke2 {[%clk 0:00:44]} 43... Bg5 {[%clk 0:00:10.7]} 44. Rh2 {[%clk 0:00:42.9]}
44... Bf4 {[%clk 0:00:10.5]} 45. Rf2 {[%clk 0:00:42.1]} 45... g5 {[%clk
0:00:10.7]} 46. Bh3 {[%clk 0:00:41.2]} 46... Rf8 {[%clk 0:00:11.2]} 47. Be6
{[%clk 0:00:40.5]} 47... Rh8 {[%clk 0:00:05.2]} 48. Bd7 {[%clk 0:00:40.7]} 48...
Rh2 {[%clk 0:00:03.2]} 49. Bxc6 {[%clk 0:00:40.8]} 49... g4 {[%clk 0:00:02.3]}
50. Bxb5 {[%clk 0:00:40.5]} 50... g3 {[%clk 0:00:02.5]} 51. Rxh2 {[%clk
0:00:32.5]} 51... gxh2 {[%clk 0:00:03.4]} 52. c4 {[%clk 0:00:33]} 52... h1=Q
{[%clk 0:00:03.8]} 53. cxd5 {[%clk 0:00:33.9]} 53... Qf3+ {[%clk 0:00:04.1]} 54.
Ke1 {[%clk 0:00:34]} 54... Bxd5 {[%clk 0:00:04.4]} 55. Be2 {[%clk 0:00:32.6]}
55... Qe4 {[%clk 0:00:04.8]} 56. Kf2 {[%clk 0:00:32.6]} 56... Qxd4+ {[%clk
0:00:05.1]} 57. Kf1 {[%clk 0:00:31.6]} 57... Bxe5 {[%clk 0:00:05.7]} 58. b5
{[%clk 0:00:31.4]} 58... Bc4 {[%clk 0:00:06.1]} 59. b6 {[%clk 0:00:31.6]} 59...
Bxe2+ {[%clk 0:00:06]} 60. Kxe2 {[%clk 0:00:32.5]} 60... Qb2+ {[%clk 0:00:06.2]}
61. Kf3 {[%clk 0:00:33.4]} 61... Qxb6 {[%clk 0:00:06.8]} 62. Ke4 {[%clk
0:00:33.5]} 62... Qd4+ {[%clk 0:00:07.4]} 63. Kf5 {[%clk 0:00:34.4]} 63... Bd6
{[%clk 0:00:07.7]} 64. Kg5 {[%clk 0:00:34.5]} 64... Bb4 {[%clk 0:00:08]} 65. Kh5
{[%clk 0:00:35.4]} 65... Qe5+ {[%clk 0:00:08.1]} 66. Kh4 {[%clk 0:00:35.5]}
66... Qf4+ {[%clk 0:00:07.9]} 67. Kh3 {[%clk 0:00:35.7]} 67... Qg5 {[%clk
0:00:08]} 68. Kh2 {[%clk 0:00:35.7]} 68... Be1 {[%clk 0:00:08.6]} 69. Kh1 {[%clk
0:00:36.6]} 69... Bf2 {[%clk 0:00:08.5]} 70. Kh2 {[%clk 0:00:36.7]} 70... Qg3+
{[%clk 0:00:08.8]} 71. Kh1 {[%clk 0:00:35.4]} 71... Qh3# {[%clk 0:00:09]} 0-1

[Event "*** Titled Tuesday Blitz"]
[Site "Chess.com"]
[Date "2020.12.29"]
[Round "8"]
[White "Ave_Mariia"]
[Black "anon102030"]
[Result "0-1"]
[WhiteElo "2495"]
[BlackElo "2693"]
[TimeControl "180+1"]
[EndTime "11:28:46 PST"]
[Termination "anon102030 won by resignation"]

1. d4 {[%clk 0:03:00.9]} 1... Nf6 {[%clk 0:02:59.4]} 2. c4 {[%clk 0:03:00.9]}
2... e5 {[%clk 0:02:59.2]} 3. dxe5 {[%clk 0:03:00.2]} 3... Ng4 {[%clk
0:02:59.9]} 4. Bf4 {[%clk 0:03:00.3]} 4... Nc6 {[%clk 0:02:59.6]} 5. Nf3 {[%clk
0:02:59.2]} 5... Bb4+ {[%clk 0:02:59.2]} 6. Nbd2 {[%clk 0:02:54.7]} 6... Qe7
{[%clk 0:03:00.1]} 7. e3 {[%clk 0:02:41.3]} 7... Ngxe5 {[%clk 0:03:00.1]} 8. Be2
{[%clk 0:02:40.3]} 8... O-O {[%clk 0:02:49.8]} 9. O-O {[%clk 0:02:40.1]} 9... d6
{[%clk 0:02:46.6]} 10. a3 {[%clk 0:02:38.9]} 10... Bxd2 {[%clk 0:02:46.2]} 11.
Qxd2 {[%clk 0:02:39.1]} 11... Nxf3+ {[%clk 0:02:44.2]} 12. Bxf3 {[%clk 0:02:40]}
12... Ne5 {[%clk 0:02:44.1]} 13. Be2 {[%clk 0:02:39.6]} 13... Be6 {[%clk
0:02:43]} 14. Rac1 {[%clk 0:02:37.8]} 14... b6 {[%clk 0:02:38.3]} 15. b4 {[%clk
0:02:34.7]} 15... Rad8 {[%clk 0:02:37.9]} 16. Qc3 {[%clk 0:02:33.5]} 16... Nd7
{[%clk 0:02:35.2]} 17. Bf3 {[%clk 0:02:28.3]} 17... f5 {[%clk 0:02:31.8]} 18. h3
{[%clk 0:02:14.5]} 18... g5 {[%clk 0:02:30.3]} 19. Bh2 {[%clk 0:02:12.3]} 19...
Qg7 {[%clk 0:02:27.8]} 20. Qxg7+ {[%clk 0:01:59.2]} 20... Kxg7 {[%clk
0:02:28.7]} 21. h4 {[%clk 0:01:56.1]} 21... h6 {[%clk 0:02:19.3]} 22. Rfd1
{[%clk 0:01:53.3]} 22... Kg6 {[%clk 0:02:10.6]} 23. a4 {[%clk 0:01:38.7]} 23...
Bf7 {[%clk 0:01:54.1]} 24. a5 {[%clk 0:01:35.7]} 24... bxa5 {[%clk 0:01:51.8]}
25. bxa5 {[%clk 0:01:36.2]} 25... Nc5 {[%clk 0:01:49.1]} 26. hxg5 {[%clk
0:01:23.4]} 26... hxg5 {[%clk 0:01:50]} 27. g4 {[%clk 0:01:23.8]} 27... Be6
{[%clk 0:01:32]} 28. gxf5+ {[%clk 0:01:23.2]} 28... Bxf5 {[%clk 0:01:32.9]} 29.
Kg2 {[%clk 0:01:06.9]} 29... Rb8 {[%clk 0:01:16.1]} 30. Rd4 {[%clk 0:00:52.5]}
30... Rb2 {[%clk 0:01:15.1]} 31. Rcd1 {[%clk 0:00:46.4]} 31... Ra2 {[%clk
0:01:07]} 32. e4 {[%clk 0:00:46.4]} 32... Bh3+ {[%clk 0:00:45.8]} 33. Kxh3
{[%clk 0:00:43.5]} 33... Rxf3+ {[%clk 0:00:44.7]} 34. Bg3 {[%clk 0:00:44]} 34...
Raxf2 {[%clk 0:00:40.4]} 35. Kg4 {[%clk 0:00:44.2]} 35... Nd7 {[%clk 0:00:28.6]}
36. e5 {[%clk 0:00:16.5]} 36... Nxe5+ {[%clk 0:00:28.8]} 37. Bxe5 {[%clk
0:00:16.4]} 37... dxe5 {[%clk 0:00:29.7]} 38. Rd8 {[%clk 0:00:15.9]} 38... Rf4+
{[%clk 0:00:28.8]} 39. Kg3 {[%clk 0:00:16.2]} 39... R2f3+ {[%clk 0:00:28.5]} 40.
Kg2 {[%clk 0:00:16.6]} 40... Rc3 {[%clk 0:00:28.4]} 41. Rg8+ {[%clk 0:00:15.6]}
41... Kf5 {[%clk 0:00:27]} 42. Rf8+ {[%clk 0:00:15.1]} 42... Kg4 {[%clk
0:00:27]} 43. Re8 {[%clk 0:00:10.7]} 43... e4 {[%clk 0:00:13.9]} 44. Re1 {[%clk
0:00:06.7]} 44... Rc2+ {[%clk 0:00:12.4]} 45. Kg1 {[%clk 0:00:05.7]} 45... Rxc4
{[%clk 0:00:13.1]} 46. Re5 {[%clk 0:00:04.9]} 46... a6 {[%clk 0:00:12.4]} 47.
Rd5 {[%clk 0:00:04.1]} 47... Rc3 {[%clk 0:00:08.9]} 48. Kh1 {[%clk 0:00:03.8]}
48... Rh3+ {[%clk 0:00:08.7]} 49. Kg1 {[%clk 0:00:03.9]} 49... Rg3+ {[%clk
0:00:09.6]} 50. Kh1 {[%clk 0:00:04.2]} 50... Kh5 {[%clk 0:00:09]} 51. Re2 {[%clk
0:00:03.1]} 51... Rh4+ {[%clk 0:00:08.6]} 52. Rh2 {[%clk 0:00:03.4]} 52... Rxh2+
{[%clk 0:00:08.9]} 53. Kxh2 {[%clk 0:00:04.3]} 53... Ra3 {[%clk 0:00:09.2]} 54.
Rc5 {[%clk 0:00:04.3]} 54... Kg4 {[%clk 0:00:08]} 55. Rxc7 {[%clk 0:00:04.2]}
55... Rxa5 {[%clk 0:00:08.3]} 56. Rc4 {[%clk 0:00:04.4]} 56... Kf3 {[%clk
0:00:08.4]} 0-1

[Event "*** Titled Tuesday Blitz"]
[Site "Chess.com"]
[Date "2020.12.29"]
[Round "8"]
[White "Ze-Pequeno"]
[Black "Yoda1992"]
[Result "0-1"]
[WhiteElo "2341"]
[BlackElo "2503"]
[TimeControl "180+1"]
[EndTime "11:28:46 PST"]
[Termination "Yoda1992 won on time"]

1. e4 {[%clk 0:03:00.9]} 1... c5 {[%clk 0:02:59.5]} 2. Nf3 {[%clk 0:03:00.8]}
2... d6 {[%clk 0:02:53.4]} 3. d4 {[%clk 0:03:00.5]} 3... cxd4 {[%clk 0:02:54.3]}
4. Nxd4 {[%clk 0:03:01.1]} 4... Nf6 {[%clk 0:02:53.8]} 5. Nc3 {[%clk 0:03:01.3]}
5... g6 {[%clk 0:02:54.1]} 6. Be3 {[%clk 0:03:01.3]} 6... Bg7 {[%clk 0:02:54.2]}
7. f3 {[%clk 0:03:01.8]} 7... O-O {[%clk 0:02:54.7]} 8. Qd2 {[%clk 0:03:01.8]}
8... Nc6 {[%clk 0:02:55.1]} 9. O-O-O {[%clk 0:03:02]} 9... d5 {[%clk 0:02:55.6]}
10. exd5 {[%clk 0:03:02.9]} 10... Nxd5 {[%clk 0:02:55.5]} 11. Nxc6 {[%clk
0:03:02.5]} 11... bxc6 {[%clk 0:02:55.1]} 12. Bd4 {[%clk 0:03:02.7]} 12... e5
{[%clk 0:02:54.7]} 13. Bc5 {[%clk 0:03:02.6]} 13... Be6 {[%clk 0:02:55.3]} 14.
Ne4 {[%clk 0:03:01.3]} 14... Re8 {[%clk 0:02:51.2]} 15. h4 {[%clk 0:02:55.8]}
15... Nf6 {[%clk 0:02:24.9]} 16. Qxd8 {[%clk 0:02:47.3]} 16... Raxd8 {[%clk
0:02:23.9]} 17. Rxd8 {[%clk 0:02:47.8]} 17... Rxd8 {[%clk 0:02:23.6]} 18. Be7
{[%clk 0:02:48.2]} 18... Nxe4 {[%clk 0:01:40.3]} 19. Bxd8 {[%clk 0:02:47.6]}
19... Bh6+ {[%clk 0:01:40.3]} 20. Bg5 {[%clk 0:02:47.1]} 20... Nxg5 {[%clk
0:01:37.2]} 21. hxg5 {[%clk 0:02:45.7]} 21... Bxg5+ {[%clk 0:01:38.1]} 22. Kb1
{[%clk 0:02:45.4]} 22... Bd5 {[%clk 0:01:33.4]} 23. c4 {[%clk 0:02:11.5]} 23...
Be6 {[%clk 0:01:31.2]} 24. Kc2 {[%clk 0:01:56]} 24... Be3 {[%clk 0:01:28.1]} 25.
Bd3 {[%clk 0:01:43.5]} 25... Kg7 {[%clk 0:01:24.7]} 26. b4 {[%clk 0:01:37.6]}
26... h5 {[%clk 0:01:21.9]} 27. a4 {[%clk 0:01:35.2]} 27... Kf6 {[%clk
0:01:05.4]} 28. a5 {[%clk 0:01:28.3]} 28... Kg5 {[%clk 0:01:02.4]} 29. b5 {[%clk
0:01:19.9]} 29... cxb5 {[%clk 0:01:02]} 30. cxb5 {[%clk 0:01:19.8]} 30... Kf4
{[%clk 0:00:59.6]} 31. Re1 {[%clk 0:01:18.5]} 31... Bd4 {[%clk 0:00:52]} 32. Re2
{[%clk 0:00:44.4]} 32... Kg3 {[%clk 0:00:49.7]} 33. b6 {[%clk 0:00:32]} 33...
axb6 {[%clk 0:00:49.9]} 34. a6 {[%clk 0:00:32.4]} 34... b5 {[%clk 0:00:36.9]}
35. Bxb5 {[%clk 0:00:30]} 35... Bd5 {[%clk 0:00:33]} 36. Bd3 {[%clk 0:00:25.5]}
36... f5 {[%clk 0:00:30.2]} 37. Bb5 {[%clk 0:00:24.4]} 37... g5 {[%clk
0:00:23.8]} 38. Rd2 {[%clk 0:00:23.6]} 38... h4 {[%clk 0:00:20]} 39. Bf1 {[%clk
0:00:13.9]} 39... g4 {[%clk 0:00:18.3]} 40. fxg4 {[%clk 0:00:13.6]} 40... fxg4
{[%clk 0:00:19.2]} 41. a7 {[%clk 0:00:12.2]} 41... Be4+ {[%clk 0:00:17.2]} 42.
Bd3 {[%clk 0:00:09.5]} 42... Bb7 {[%clk 0:00:13.1]} 43. Ba6 {[%clk 0:00:06.1]}
43... Be4+ {[%clk 0:00:12.3]} 44. Bd3 {[%clk 0:00:06.1]} 44... Bc6 {[%clk
0:00:11.2]} 45. Bb5 {[%clk 0:00:05.9]} 45... Ba8 {[%clk 0:00:10.5]} 46. Rxd4
{[%clk 0:00:04.7]} 46... exd4 {[%clk 0:00:11.4]} 47. Kd3 {[%clk 0:00:04.8]}
47... Kxg2 {[%clk 0:00:10.7]} 48. Kxd4 {[%clk 0:00:03.9]} 48... Kg1 {[%clk
0:00:08.3]} 49. Bc4 {[%clk 0:00:04.1]} 49... h3 {[%clk 0:00:07.7]} 50. Bd5
{[%clk 0:00:04.8]} 50... Bxd5 {[%clk 0:00:08]} 51. Kxd5 {[%clk 0:00:04.9]} 51...
h2 {[%clk 0:00:08.5]} 52. Kc6 {[%clk 0:00:04.3]} 52... h1=Q+ {[%clk 0:00:08.7]}
0-1

[Event "*** Titled Tuesday Blitz"]
[Site "Chess.com"]
[Date "2020.12.29"]
[Round "8"]
[White "pastouche06"]
[Black "Flopezin"]
[Result "0-1"]
[WhiteElo "2503"]
[BlackElo "2376"]
[TimeControl "180+1"]
[EndTime "11:28:46 PST"]
[Termination "Flopezin won on time"]

1. d4 {[%clk 0:03:00.9]} 1... Nf6 {[%clk 0:02:59.5]} 2. c4 {[%clk 0:03:01.1]}
2... e6 {[%clk 0:02:59.4]} 3. Nc3 {[%clk 0:03:00.9]} 3... Bb4 {[%clk 0:02:59.8]}
4. e3 {[%clk 0:02:59.2]} 4... c5 {[%clk 0:02:59.2]} 5. Ne2 {[%clk 0:02:58.7]}
5... cxd4 {[%clk 0:02:58.8]} 6. exd4 {[%clk 0:02:59.6]} 6... d5 {[%clk
0:02:59.3]} 7. a3 {[%clk 0:02:58.9]} 7... Be7 {[%clk 0:02:57.6]} 8. c5 {[%clk
0:02:55.9]} 8... b6 {[%clk 0:02:51.8]} 9. b4 {[%clk 0:02:55]} 9... bxc5 {[%clk
0:02:48.5]} 10. dxc5 {[%clk 0:02:55.9]} 10... a5 {[%clk 0:02:45.7]} 11. Bb2
{[%clk 0:02:40.4]} 11... Bd7 {[%clk 0:02:27]} 12. Na4 {[%clk 0:02:16.1]} 12...
Na6 {[%clk 0:02:02.5]} 13. Nb6 {[%clk 0:02:01.7]} 13... Ra7 {[%clk 0:02:02.5]}
14. Nd4 {[%clk 0:01:42.7]} 14... Nc7 {[%clk 0:01:50.6]} 15. c6 {[%clk
0:01:26.7]} 15... Bc8 {[%clk 0:01:49.7]} 16. Nxc8 {[%clk 0:01:24.2]} 16... Qxc8
{[%clk 0:01:44.1]} 17. b5 {[%clk 0:01:21.2]} 17... Bc5 {[%clk 0:01:40.5]} 18.
Nb3 {[%clk 0:01:20.6]} 18... Bb6 {[%clk 0:01:36.2]} 19. Bd4 {[%clk 0:01:20.2]}
19... Qb8 {[%clk 0:01:30.9]} 20. a4 {[%clk 0:01:12.3]} 20... Ne4 {[%clk
0:01:30.5]} 21. Bxb6 {[%clk 0:01:07.3]} 21... Qxb6 {[%clk 0:01:30.3]} 22. Qd4
{[%clk 0:01:07.3]} 22... Qxd4 {[%clk 0:01:23.4]} 23. Nxd4 {[%clk 0:01:08.2]}
23... Na8 {[%clk 0:01:24.1]} 24. b6 {[%clk 0:00:33.6]} 24... Nxb6 {[%clk
0:01:23.5]} 25. Rb1 {[%clk 0:00:33.5]} 25... Nc8 {[%clk 0:01:17.8]} 26. Rb8
{[%clk 0:00:32.5]} 26... Rc7 {[%clk 0:00:57.1]} 27. f3 {[%clk 0:00:21.1]} 27...
Nc5 {[%clk 0:00:52.3]} 28. Nb5 {[%clk 0:00:19.7]} 28... Rxc6 {[%clk 0:00:51.6]}
29. Na7 {[%clk 0:00:19.5]} 29... Rc7 {[%clk 0:00:40.4]} 30. Rxc8+ {[%clk
0:00:18.8]} 30... Rxc8 {[%clk 0:00:39.8]} 31. Nxc8 {[%clk 0:00:19.7]} 31... Kd7
{[%clk 0:00:40.7]} 32. Nb6+ {[%clk 0:00:19.2]} 32... Kc6 {[%clk 0:00:41.1]} 33.
Bb5+ {[%clk 0:00:11.8]} 33... Kxb6 {[%clk 0:00:41.3]} 34. Ke2 {[%clk 0:00:12.7]}
34... Nb3 {[%clk 0:00:38.3]} 35. Kd3 {[%clk 0:00:11.4]} 35... Rc8 {[%clk
0:00:37]} 36. Rb1 {[%clk 0:00:11.6]} 36... Nc5+ {[%clk 0:00:34.8]} 37. Kd4
{[%clk 0:00:12]} 37... Rc7 {[%clk 0:00:20.6]} 38. Be2+ {[%clk 0:00:10.9]} 38...
Ka7 {[%clk 0:00:20.2]} 39. Rb5 {[%clk 0:00:11.8]} 39... Nb7 {[%clk 0:00:18.4]}
40. Bd3 {[%clk 0:00:09.5]} 40... Nd6 {[%clk 0:00:18.4]} 41. Rxa5+ {[%clk
0:00:08.4]} 41... Kb7 {[%clk 0:00:19]} 42. Rc5 {[%clk 0:00:08]} 42... Rd7 {[%clk
0:00:13.5]} 43. a5 {[%clk 0:00:06.6]} 43... Ne8 {[%clk 0:00:11.4]} 44. a6+
{[%clk 0:00:06.1]} 44... Ka7 {[%clk 0:00:11.8]} 45. Rc6 {[%clk 0:00:05.8]} 45...
Rc7 {[%clk 0:00:09.8]} 46. Kc5 {[%clk 0:00:05.8]} 46... Rd7 {[%clk 0:00:07.1]}
47. Bb5 {[%clk 0:00:04]} 47... Nc7 {[%clk 0:00:06.8]} 48. Bd3 {[%clk 0:00:03]}
48... Na8 {[%clk 0:00:05.4]} 49. f4 {[%clk 0:00:01.3]} 49... f6 {[%clk
0:00:03.1]} 0-1

[Event "*** Titled Tuesday Blitz"]
[Site "Chess.com"]
[Date "2020.12.29"]
[Round "8"]
[White "SergeyShtyka"]
[Black "Keures"]
[Result "1/2-1/2"]
[WhiteElo "2451"]
[BlackElo "2336"]
[TimeControl "180+1"]
[EndTime "11:28:48 PST"]
[Termination "Game drawn by repetition"]

1. e4 {[%clk 0:02:55.3]} 1... e6 {[%clk 0:03:00.2]} 2. Nf3 {[%clk 0:02:54.1]}
2... d5 {[%clk 0:03:01.1]} 3. e5 {[%clk 0:02:54.5]} 3... c5 {[%clk 0:03:00.1]}
4. b4 {[%clk 0:02:54.6]} 4... d4 {[%clk 0:03:00.5]} 5. bxc5 {[%clk 0:02:54.1]}
5... Bxc5 {[%clk 0:03:01.4]} 6. Bd3 {[%clk 0:02:54.3]} 6... Nc6 {[%clk
0:03:00.5]} 7. O-O {[%clk 0:02:53.8]} 7... b6 {[%clk 0:02:54.2]} 8. Ba3 {[%clk
0:02:52.7]} 8... Qe7 {[%clk 0:02:51.3]} 9. Bxc5 {[%clk 0:02:47.4]} 9... Qxc5
{[%clk 0:02:50.2]} 10. Qe2 {[%clk 0:02:44.1]} 10... Nge7 {[%clk 0:02:46]} 11. c3
{[%clk 0:02:38.6]} 11... Bb7 {[%clk 0:02:25.3]} 12. a4 {[%clk 0:02:24.9]} 12...
g6 {[%clk 0:02:15.8]} 13. Na3 {[%clk 0:02:13.9]} 13... O-O {[%clk 0:02:14.7]}
14. Nb5 {[%clk 0:02:10.4]} 14... dxc3 {[%clk 0:02:13.6]} 15. Nxc3 {[%clk
0:01:50.7]} 15... Nd5 {[%clk 0:02:07.6]} 16. Ne4 {[%clk 0:01:47.3]} 16... Nf4
{[%clk 0:02:00.5]} 17. Nxc5 {[%clk 0:01:38.9]} 17... Nxe2+ {[%clk 0:02:00.5]}
18. Bxe2 {[%clk 0:01:39.4]} 18... bxc5 {[%clk 0:02:01.1]} 19. Rfc1 {[%clk
0:01:34.3]} 19... Nd4 {[%clk 0:02:00.9]} 20. Nxd4 {[%clk 0:01:30.3]} 20... cxd4
{[%clk 0:02:01.8]} 21. Rab1 {[%clk 0:01:23]} 21... Rab8 {[%clk 0:01:54.4]} 22.
Rb4 {[%clk 0:01:07.9]} 22... Bd5 {[%clk 0:01:28]} 23. Rxd4 {[%clk 0:01:06.4]}
23... Rb2 {[%clk 0:01:27.7]} 24. f4 {[%clk 0:01:01.9]} 24... Rfb8 {[%clk
0:01:20.8]} 25. Kf2 {[%clk 0:00:59.2]} 25... Ra2 {[%clk 0:01:19.6]} 26. Bf3
{[%clk 0:00:33.1]} 26... Bxf3 {[%clk 0:01:16.7]} 27. Kxf3 {[%clk 0:00:32.8]}
27... Rbb2 {[%clk 0:01:14.5]} 28. Ke3 {[%clk 0:00:32.2]} 28... Ra3+ {[%clk
0:01:12.7]} 29. Ke2 {[%clk 0:00:31.1]} 29... Rba2 {[%clk 0:01:12.2]} 30. Rcc4
{[%clk 0:00:30.4]} 30... Kg7 {[%clk 0:01:10.8]} 31. g4 {[%clk 0:00:30.4]} 31...
h6 {[%clk 0:01:09.3]} 32. h4 {[%clk 0:00:30.2]} 32... Rh3 {[%clk 0:01:08.4]} 33.
f5 {[%clk 0:00:26.8]} 33... gxf5 {[%clk 0:01:04]} 34. gxf5 {[%clk 0:00:26.7]}
34... exf5 {[%clk 0:01:04.3]} 35. Rc7 {[%clk 0:00:21.3]} 35... Kg6 {[%clk
0:00:56.2]} 36. Rxa7 {[%clk 0:00:19.4]} 36... Rh2+ {[%clk 0:00:42.7]} 37. Ke3
{[%clk 0:00:19.8]} 37... Rh3+ {[%clk 0:00:34.5]} 38. Ke2 {[%clk 0:00:19.2]}
38... Rh2+ {[%clk 0:00:34.7]} 39. Ke3 {[%clk 0:00:17.9]} 39... Rh3+ {[%clk
0:00:34.9]} 40. Kf2 {[%clk 0:00:17.8]} 40... Rh2+ {[%clk 0:00:29.7]} 41. Kg3
{[%clk 0:00:18.1]} 41... Rhxd2 {[%clk 0:00:29]} 42. Ra6+ {[%clk 0:00:17.8]}
42... Kg7 {[%clk 0:00:25.7]} 43. Rxd2 {[%clk 0:00:16.9]} 43... Rxd2 {[%clk
0:00:22.7]} 44. Kf4 {[%clk 0:00:15.8]} 44... Rf2+ {[%clk 0:00:21.7]} 45. Ke3
{[%clk 0:00:15.1]} 45... Rh2 {[%clk 0:00:20.1]} 46. Rf6 {[%clk 0:00:11.7]} 46...
Rxh4 {[%clk 0:00:19]} 47. Rxf5 {[%clk 0:00:11.7]} 47... Rxa4 {[%clk 0:00:18.6]}
48. Rf1 {[%clk 0:00:11.1]} 48... Kg6 {[%clk 0:00:17.7]} 49. Rf6+ {[%clk
0:00:10.4]} 49... Kg7 {[%clk 0:00:17.8]} 50. Rc6 {[%clk 0:00:09.5]} 50... Kh7
{[%clk 0:00:14.6]} 51. e6 {[%clk 0:00:08.4]} 51... fxe6 {[%clk 0:00:14.4]} 52.
Rxe6 {[%clk 0:00:08.7]} 52... Kg7 {[%clk 0:00:14.8]} 53. Kf3 {[%clk 0:00:08.6]}
53... Kh7 {[%clk 0:00:14.9]} 54. Rb6 {[%clk 0:00:08.5]} 54... Kg7 {[%clk
0:00:15]} 55. Kg3 {[%clk 0:00:08.8]} 55... Kh7 {[%clk 0:00:15.2]} 56. Kh3 {[%clk
0:00:08.9]} 56... Kg7 {[%clk 0:00:15.6]} 57. Kg3 {[%clk 0:00:09.3]} 57... Kh7
{[%clk 0:00:16]} 58. Kh3 {[%clk 0:00:09.8]} 58... Kg7 {[%clk 0:00:16.3]} 59. Kg3
{[%clk 0:00:10.3]} 1/2-1/2